Cogmind - Beta 13 *** ADVENTURER MODE // 2024.05.24 @ 23:47:41 Player: OrcaCora Result: Destroyed by as-20571 with Assembled Blade Performance ------------- Evolutions (0) 0 Regions Visited (2) 400 Robots Destroyed (16) 80 Value Destroyed (315) 315 Prototype IDs (0) 0 Alien Tech Used (0) 0 Bonus (60) 60 TOTAL SCORE: 855 Bonus ------- Follower Combat Kills 60 Cogmind --------- Core Integrity 0/250 Matter 262/300 Energy 98/100 System Corruption 0% Temperature Cool (0) Movement Treading (480) Ox4 Location -10/Mines Parts ------- > --- POWER (1) -------- (None) > --- PROPULSION (2) --- Light Treads > --- UTILITY (2) ------ Improved Heat Sink Huge Storage Unit > --- WEAPON (2) ------- Light Cannon > --- INVENTORY (25) --- Ion Engine Light Ion Engine Heat Sink Heat Sink Heat Sink Small Storage Unit Large Storage Unit Medium Matter Pod (100) Core Shielding Core Shielding Core Shielding EM Pulse Gun EM Pulse Gun Medium Laser Light Assault Rifle Peak State ------------ > --- POWER ------------ Ion Engine > --- PROPULSION ------- Light Treads Light Treads > --- UTILITY ---------- Improved Heat Sink Huge Storage Unit > --- WEAPON ----------- Medium Laser Particle Gun > --- INVENTORY -------- Ion Engine Light Ion Engine Heat Sink Small Storage Unit Large Storage Unit Medium Matter Pod Core Shielding Core Shielding Core Shielding EM Pulse Gun EM Pulse Gun Medium Laser Light Assault Rifle [Rating: 11] Favorites ----------- Power Ion Engine Engine Ion Engine Propulsion Light Treads Treads Light Treads Utility Huge Storage Unit Device Improved Heat Sink Storage Huge Storage Unit Protection Core Shielding Weapon Medium Laser Energy Gun Medium Laser Ballistic Cannon Light Cannon Build | -11 -10 -10 ------- Run | Yrd Mat Min Slots Evolved . | . . . Power . | . . . Propulsion . | . . . Utility . | . . . Weapon . | . . . Parts Attached 20 | 4 13 3 Power 2 | 1 1 . Engine 2 | 1 1 . Core . | . . . Reactor . | . . . Propulsion 2 | 2 . . Treads 2 | 2 . . Leg . | . . . Wheel . | . . . Hover . | . . . Flight . | . . . Utility 6 | 1 5 . Device 1 | . 1 . Storage 4 | 1 3 . Processor . | . . . Hackware . | . . . Protection 1 | . 1 . Artifact . | . . . Weapon 10 | . 7 3 Energy Gun 8 | . 6 2 Energy Cannon . | . . . Ballistic Gun . | . . . Ballistic Cannon 2 | . 1 1 Launcher . | . . . Special Weapon . | . . . Impact Weapon . | . . . Slashing Weapon . | . . . Piercing Weapon . | . . . Special Melee Weapon . | . . . Unidentified Prototypes . | . . . Parts Lost 4 | . . 4 Power 1 | . . 1 Propulsion 1 | . . 1 Utility . | . . . Weapon 2 | . . 2 Highest Loss Streak 4 | . . 4 To Critical Strikes . | . . . Average Slot Usage (%) 97 | . 96 98 Engine 14 | . 14 14 Treads 27 | . 28 27 Device 8 | . 7 14 Storage 15 | . 15 14 Protection 2 | . 3 . Energy Gun 24 | . 24 26 Ballistic Cannon 2 | . 2 1 Naked Turns . | . . . Heaviest Build 92 | 8 92 91 Greatest Support 40 | 40 40 40 Greatest Overweight (x) 2 | . 2 2 Average Overweight (x) 1 | . 1 2 Largest Inventory Capacity 25 | 8 25 25 Average Capacity 23 | 7 23 25 Most Carried 16 | 6 15 16 Average Carried 11 | 4 11 15 Final Capacity 25 | 8 25 25 Final Carried 15 | 6 14 15 Class Distribution -------------------- 100% | Mutant Dominant Class ---------------- Mutant | -10/Materials Mutant | -10/Mines Resources | -11 -10 -10 ----------- Run | Yrd Mat Min Matter Collected 524 | 203 227 94 Remotely . | . . . Salvage Created 621 | . 435 186 Parts 28 | . 22 6 Haulers Intercepted 2 | . 2 . Recyclers Shooed 5 | . 5 . Parts Field Recycled . | . . . Retrieved Matter . | . . . Parts Self-Destructed . | . . . Prevented . | . . . Kills | -11 -10 -10 ------- Run | Yrd Mat Min Combat Hostiles Destroyed 14 | . 5 9 Guns 13 | . 5 8 Cannons 1 | . . 1 Classes Destroyed 7 | . 5 2 Tunneler 1 | . . 1 Hauler 2 | . 2 . Recycler 2 | . 2 . Watcher 2 | . 2 . Swarmer 3 | . 3 . Grunt 6 | . 2 4 Assembled 5 | . . 5 Best Kill Streak 5 | . 4 5 Combat Bots Only 5 | . 3 5 Max Kills in Single Turn 1 | . 1 1 Gunslinging . | . . . Exploded . | . . . Melee . | . . . Uniques/NPCs Destroyed . | . . . Combat | -11 -10 -10 -------- Run | Yrd Mat Min Hostile Shots Fired 130 | . 28 102 Missed 46 | . 8 38 Damage Taken 958 | . 169 789 Core 261 | . 36 225 Absorbed by Shields . | . . . Redirected to Shielding 2 | . 2 . Ignored by Resistances 277 | . 50 227 Regen/Repaired (Parts) 22 | . 22 . Core Remaining (%) 100 | 100 . . Volleys Fired 74 | . 42 32 Largest 2 | . 2 2 Hottest 115 | . 115 115 Shots Fired 138 | . 77 61 Gun 120 | . 75 45 Cannon 18 | . 2 16 Launcher . | . . . Special . | . . . Kinetic 18 | . 2 16 Thermal 120 | . 75 45 Explosive . | . . . Electromagnetic . | . . . Robot Hit Streak 16 | . 15 16 Robot Miss Streak 3 | . 2 3 Penetration Max . | . . . Secondary Targets 2 | . 1 1 Max Gunslinging Chain 1 | . 1 1 Shots Hit Robots 103 | . 57 46 Core Hits 37 | . 16 21 Critical Kills . | . . . Critical Parts Destroyed . | . . . Critical Strikes 9 | . 8 1 Burn 9 | . 8 1 Melee Attacks . | . . . Impact . | . . . Slashing . | . . . Piercing . | . . . Sneak Attacks . | . . . Combat Hostiles . | . . . Follow-up Attacks . | . . . Damage Inflicted 1432 | . 724 708 Guns 1205 | . 687 518 Cannons 216 | . 37 179 Explosions . | . . . Melee . | . . . Ramming 11 | . . 11 Kinetic 216 | . 37 179 Thermal 1205 | . 687 518 Explosive . | . . . Electromagnetic . | . . . Impact . | . . . Slashing . | . . . Piercing . | . . . Highest Corruption . | . . . Average Corruption . | . . . Corruption Purged . | . . . Corruption Blocked . | . . . Overload Shots . | . . . Overflow Damage 1 | . 1 . Projectiles 1 | . 1 . Explosions . | . . . Melee . | . . . Knockbacks 5 | . 1 4 Impact . | . . . Kinetic 5 | . 1 4 Secondary . | . . . Self-Inflicted Damage . | . . . Shots . | . . . Rammed . | . . . Targets Rammed 1 | . . 1 Kicked . | . . . Crushed 1 | . . 1 Highest Temperature 280 | . 280 135 Average Temperature 100 | . 121 55 Received Heat Transfer 255 | . 99 156 Effects 3 | . 3 . Energy Bleed 3 | . 3 . Siege Activations . | . . . Robots Corrupted . | . . . Combat Hostiles . | . . . Parts Fried . | . . . Impact Corruptions . | . . . Robots Melted 2 | . 2 . Combat Hostiles . | . . . Parts Melted 13 | . 10 3 Heat Transferred 4033 | . 2627 1406 Parts Sabotaged . | . . . Parts Stolen . | . . . Parts Stripped . | . . . Power Chain Reactions . | . . . Alert | -11 -10 -10 ------- Run | Yrd Mat Min Peak Influence 161 | . 89 161 Initial . | . . . Average 28 | . 12 88 Maximum Alert Level . | . . . Low Security (%) 100 | 100 100 100 Level 1 . | . . . Level 2 . | . . . Level 3 . | . . . Level 4 . | . . . Level 5 . | . . . High Security . | . . . Max Security . | . . . Squads Dispatched 1 | . . 1 Investigation . | . . . Extermination . | . . . Reinforcement . | . . . Assault 1 | . . 1 Garrison . | . . . Intercept . | . . . Searches Triggered . | . . . Construction Impeded . | . . . Haulers Reinforced . | . . . Active Scanning Responses . | . . . Cargo Convoy Interrupts . | . . . Stealth | -11 -10 -10 --------- Run | Yrd Mat Min Distress Signals . | . . . Communications Jammed . | . . . Distress Signals . | . . . Times Spotted 37 | . 13 24 Peak Tracking Total 17 | . 3 17 Tactical Retreats 1 | . . 1 Traps | -11 -10 -10 ------- Run | Yrd Mat Min Traps Triggered . | . . . Indirectly . | . . . Trap Hack Attempts . | . . . Triggered . | . . . Disarmed . | . . . Reprogrammed . | . . . Reused . | . . . Traps Extracted . | . . . Installed . | . . . Triggered . | . . . Machines | -11 -10 -10 ---------- Run | Yrd Mat Min Machines Disabled . | . . . Max in Single Turn . | . . . Machines Repaired . | . . . Machines Dismantled . | . . . Machines Sabotaged . | . . . Overloaded Fab Kills . | . . . Hacking | -11 -10 -10 --------- Run | Yrd Mat Min Machines Accessed 4 | . 4 . Terminals 3 | . 3 . Fabricators . | . . . Repair Stations 1 | . 1 . Recycling Units . | . . . Scanalyzers . | . . . Garrison Access . | . . . Total Hacks 9 | . 9 . Successful 4 | . 4 . Failed 5 | . 5 . Catastrophic 2 | . 2 . Database Lockouts . | . . . Manual 4 | . 4 . Terminals 7 | . 7 . Fabricators . | . . . Repair Stations 2 | . 2 . Recycling Units . | . . . Scanalyzers . | . . . Garrison Access . | . . . Terminal Hacks 2 | . 2 . Branch Access Points 1 | . 1 . Registered Components 1 | . 1 . Fabricator Hacks . | . . . Repair Station Hacks 2 | . 2 . Scan Component 1 | . 1 . Repair 1 | . 1 . Recycling Unit Hacks . | . . . Scanalyzer . | . . . Garrison Access Hacks . | . . . Unauthorized Hacks . | . . . Terminals . | . . . Fabricators . | . . . Repair Stations . | . . . Recycling Units . | . . . Scanalyzers . | . . . Garrison Access . | . . . Data Cores Recovered . | . . . Used . | . . . Hacking Detections 2 | . 2 . Full Trace Events . | . . . Feedback Events . | . . . Feedback Blocked . | . . . Robot Schematics Acquired . | . . . Robots Built . | . . . Authchips . | . . . Time . | . . . Total Robot Build Rating . | . . . Part Schematics Acquired . | . . . Parts Built . | . . . Authchips . | . . . Time . | . . . Total Part Build Rating . | . . . Parts Repaired 1 | . 1 . Time 32 | . 32 . Parts Recycled . | . . . Recycled Matter . | . . . Retrieved Matter . | . . . Retrieved Components . | . . . Parts Scanalyzed . | . . . Part Schematics Acquired . | . . . Parts Damaged . | . . . Bothacking | -11 -10 -10 ------------ Run | Yrd Mat Min Used RIF Installer . | . . . Robots Hacked . | . . . Non-combat . | . . . Combat . | . . . Robot Hacks Applied . | . . . Relay Couplers Released . | . . . Fabnet Peak Effective % . | . . . Robots Rewired . | . . . Allies Hacked . | . . . Hacks Repelled . | . . . Allies | -11 -10 -10 -------- Run | Yrd Mat Min Total Allies 1 | . . 1 Largest Group 1 | . . 1 Highest-Rated Group 31 | . . 31 Highest-Rated Ally 31 | . . 31 Total Orders . | . . . Ally Attacks 13 | . . 13 Total Damage 211 | . . 211 Kills 2 | . . 2 Allies Corrupted . | . . . Allies Melted . | . . . Intel | -11 -10 -10 ------- Run | Yrd Mat Min Robot Analysis Total . | . . . Derelict Logs Recovered . | . . . Drone Launches . | . . . Drone Recoveries . | . . . Exploration | -11 -10 -10 ------------- Run | Yrd Mat Min Turns Passed 2198 | 74 1649 475 Spaces Moved 662 | 50 506 106 Core 16 | 16 . . Treads 646 | 34 506 106 Legs . | . . . Wheels . | . . . Hover . | . . . Flight . | . . . Fastest Speed 50 | 50 160 320 Average Speed 278 | 124 285 320 Slowest Speed 320 | 160 320 320 Overloaded Moves . | . . . Propulsion Burnouts . | . . . Robots Hopped . | . . . Cave-ins Triggered . | . . . Exploration Rate (%) 36 | 4 80 24 Regions Visited 2 Branch Regions 1 Pre-discovered Areas . | . . . Known Exits Taken 1 | . 1 . Unknown Exits Taken 1 | 1 . . Scrap Searched . | . . . Spaces Dug . | . . . Terrain Destroyed 1 | . . 1 Melee . | . . . Projectile 1 | . . 1 AOE . | . . . Terrain Rammed . | . . . Walls Destroyed . | . . . Machines Disabled . | . . . Actions | -11 -10 -10 --------- Run | Yrd Mat Min Total 874 | 61 634 179 Wait 89 | . 54 35 Move 660 | 49 505 106 Hop . | . . . Pick Up 25 | 8 15 2 Fast Attach 2 | 2 . . Attach 10 | 2 7 1 Detach 2 | . 2 . Swap 8 | . 6 2 Drop 3 | . 3 . Fire 74 | . 42 32 Melee . | . . . Ram . | . . . Kick . | . . . Crush 1 | . . 1 Escape Stasis . | . . . Rewire . | . . . Trap . | . . . Miscellaneous . | . . . Route ------- -11/Scrapyard -10/Materials (discovered 4 exits: [*Mat x2] / *Min x2) -10/Mines History --------- Turn | Location | Event 7 | -11/Scrapyard | Discovered new exit (range 15) 75 | -11/Scrapyard | Entered Materials 95 | -10/Materials | Identified exit to Mines 318 | -10/Materials | Build established: Mutant 495 | -10/Materials | Discovered new exit (range 16) 878 | -10/Materials | Discovered new exit (range 14) 1199 | -10/Materials | Repaired Particle Gun 1724 | -10/Materials | Entered Mines 1864 | -10/Mines | Met a Derelict testing a Signal Generator 2112 | -10/Mines | Assembled infested the area 2161 | -10/Mines | Core integrity fell below 50% 2180 | -10/Mines | Core integrity fell below 20% 2199 | -10/Mines | Destroyed by as-20571 with Assembled Blade Last Messages --------------- 02155_ as-17875 destroyed. 02156_ D-53 Grenadier destroyed. 02156_ Destroyed Asb. F-torch. 02162_ as-79465 destroyed. 02165_ as-46736 destroyed. 02165_ Lgt. Treads destroyed. 02171_ as-37412 destroyed. 02171_ Switching to secondary target: as-14574. 02174_ Med. Laser destroyed. 02177_ as-14574 destroyed. 02179_ The unstable cave ceiling collapses. 02182_ as-11328 knocked back. 02184_ The unstable cave ceiling collapses. 02185_ as-86003 knocked back. 02188_ as-86003 destroyed. 02194_ as-86357 knocked back. 02195_ Ion Engine destroyed. 02195_ Particle Gun destroyed. 02196_ U-05 Engineer builds a Wall. 02199_ as-43217 knocked back. Map ----- +----------------------------------------------------+ | ???????????????????????????????????????????????? | | ???????????????????????????????????????????????? | | ????????????? ?????????????????????????????????? | | ????????????? ?????????????????????????????????? | | ????????????? ???????? ?????????????????????? | | ????????????? ??????? ?????????????????????? | | ????????????? ????#?? ?????????????????????? | | ????????????? ????# ? ?????????????????????? | | ????????????? ????? ? ?????????????????????? | | ????????????# #???? ? ?????????????????????? | | ????????????# #????? ? ?????????????????????? | | ????????????# #????? ?????????????????????? | | ????????????# #?????? ?????????????????????? | | ????????????# #??????# ?????????? #?????????? | | ????????????# #??????? ???????? #?????????? | | ????????????# #???????# #??????? ??????????? | | ???????###### #???????? ####??## #?????????? | | ???????# #????????# # ### ##???????? | | ???????# #### ########## # # #???????? | | ######## #??# u % #???????? | | ## #??############# % % % ????????? | | ## #######????????????# *% a % ?????????? | | ## #??????????????????## % #???????????? | | ## #??????????????????# %a % #????????????? | | ## #?????????????????## % % a #????????????? | | #?????????????????# @a #????????????????? | | ## #?????????????????# % #????????????????? | | ## #?????????????????# #????????????????? | | #?????????????????# ## ##????????????????? | | ####????????????????# ##? ????????????????? | | #?????????????????? #??? ???????????????? | | #????????????????? #????? #??????????????? | | #???????????????? #?????? ##??????????????? | | #??????????????? ??????? ##???????????????? | | #?????????????? ?????????#????????????????? | | ?????????????## ??????????????????????????? | | ??????????????## ???????????????????????????? | | #???????????????####???????????????????????????? | | ???????????????????????????????????????????????? | | ???????????????????????????????????????????????? | | ???????????????????????????????????????????????? | | ???????????????????????????????????????????????? | | ???????????????????????????????????????????????? | | ???????????????????????????????????????????????? | | ???????????????????????????????????????????????? | | ???????????????????????????????????????????????? | | | | | | | | | +----------------------------------------------------+ Best States ------------- Heat Dissipation 39 Energy Generation 10 Energy Capacity 250 Matter Stores 300 Matter Capacity 300 Sight Range 16 Terrain Scan Density 10 Resistance: KI 20 Resistance: TH 20 Resistance: EX 20 Resistance: EM 20 Resistance: I 20 Resistance: S 20 Resistance: P 20 Core Shielding 20 Evasion (%) 50 Recoil Reduction 2 Offensive Hacking 10 Item Schematics ----------------- None Robot Schematics ------------------ None Fabricated ------------ Nothing Alien Tech Used ----------------- None Achievements -------------- None Challenges ------------ None Game ------ Seed IntegrityGrapheneKatana Manual? 0 Play Time 00:12:06 Cumulative 32.6 hours Start 2024.05.24 @ 23:34:15 End 2024.05.24 @ 23:47:41 Sessions 1 Manual Loads 0 Difficulty Adventurer Special Mode None Game No. 17 Rogue 0 Adventurer 17 Explorer 0 Win Type - Total 0 Types 0/0/0/0/0/0/0/0/0 Lore% 16 Gallery% 25 Achievement% 24 Wizard Run 0 Options --------- Layout 1 ASCII 0 Keyboard 0 Movement Mouse Keybinds 0 Fullscreen 1 Font 24/Smallcaps Map View 50x35 Zoom Use 0% Tactical HUD 1 Map Filters NONE Filters NONE Steam 1 RUN: 9d593f8d-b595-4634-8365-2077baed48d0